bitfinex/quotes_BTCUSD_20241229
["timestamp","ask_amount","ask_price","bid_price","bid_amount"]
[1735496174636,0.0030508,94113.0,94112.0,0.12887424]
[1735496175084,5.08e-05,94113.0,94112.0,0.12887424]
[1735496175280,5.08e-05,94113.0,94112.0,0.13087424]
[1735496175499,5.08e-05,94113.0,94112.0,0.13587424]
[1735496178299,5.08e-05,94113.0,94112.0,0.35344798]
[1735496178885,5.08e-05,94113.0,94112.0,0.25344798]
[1735496179111,5.08e-05,94113.0,94112.0,0.35344798]
[1735496179654,5.08e-05,94113.0,94112.0,0.33986056]
[1735496179829,0.01672068,94113.0,94112.0,0.23986056]
[1735496180033,0.01672068,94113.0,94112.0,0.33986056]
[1735496180856,0.01672068,94113.0,94112.0,0.23986056]
[1735496181082,0.01672068,94113.0,94112.0,0.13587424]
[1735496181449,0.01672068,94113.0,94112.0,0.0071706]
[1735496181646,0.01672068,94113.0,94112.0,0.03987424]
[1735496181873,0.01672068,94113.0,94112.0,0.0071706]
[1735496181874,3.50208275,94113.0,94112.0,0.0071706]
[1735496182072,3.63948505,94113.0,94112.0,0.0071706]
[1735496182847,3.63948505,94113.0,94112.0,0.0021706]
[1735496183053,3.63948505,94113.0,94096.0,0.12870364]
[1735496183054,0.0776,94112.0,94096.0,0.12870364]
[1735496183255,3.608317,94112.0,94102.0,0.096]
[1735496183457,3.530717,94111.0,94102.0,0.096]
[1735496184012,3.55071973,94111.0,94102.0,0.096]
[1735496184150,3.530717,94110.0,94102.0,0.096]
[1735496184359,0.28710223,94109.0,94102.0,0.096]
[1735496184557,3.272,94108.0,94102.0,0.096]
[1735496185481,3.530717,94110.0,94102.0,0.096]
[1735496186280,0.452,94109.0,94106.0,0.03270364]
[1735496186493,0.36470223,94112.0,94106.0,0.03270364]
[1735496186832,0.001,94110.0,94106.0,0.03270364]
[1735496187034,0.001,94110.0,94109.0,0.03270364]
[1735496187256,0.0001361,94113.0,94112.0,0.03270364]
[1735496187651,0.0001361,94113.0,94112.0,0.03170364]
[1735496188534,0.0001361,94113.0,94112.0,0.044474]
[1735496188739,0.01680699,94113.0,94112.0,0.140474]
[1735496188960,0.01680699,94113.0,94112.0,0.141474]
[1735496189434,0.01680699,94113.0,94112.0,0.12870364]
[1735496193199,0.30080699,94113.0,94112.0,0.097]
[1735496193412,0.25080699,94113.0,94112.0,0.12870364]
[1735496193610,0.01680699,94113.0,94112.0,0.12870364]
[1735496194030,0.01680699,94113.0,94112.0,0.12887424]
[1735496194630,0.01680699,94113.0,94112.0,0.03287424]
[1735496194992,0.01680699,94113.0,94112.0,0.12887424]
[1735496195190,0.12705181,94113.0,94112.0,0.0011706]
[1735496195593,3.65776881,94113.0,94112.0,0.0011706]
[1735496195917,3.62262399,94113.0,94107.0,0.096]
[1735496196097,3.530717,94112.0,94093.0,0.03104484]
[1735496196302,0.13087033,94103.0,94093.0,0.03104484]
[1735496196638,1.62,94102.0,94096.0,0.096]
[1735496197003,1.62,94102.0,94093.0,0.03104484]
[1735496197414,1.62,94102.0,94093.0,0.03304484]
[1735496197643,0.19123187,94099.0,94093.0,0.03304484]
[1735496198293,0.19123187,94099.0,94098.0,0.096]
[1735496198999,0.20790481,94099.0,94098.0,0.096]
[1735496199335,0.22351136,94099.0,94098.0,0.096]
[1735496200208,0.01667294,94099.0,94098.0,0.096]
[1735496200443,0.37267294,94099.0,94098.0,0.1]
[1735496201535,0.37267294,94099.0,94098.0,0.102]
[1735496202102,0.37267294,94099.0,94098.0,0.1]
[1735496202472,0.37267294,94099.0,94098.0,0.102]
[1735496202676,0.01667294,94099.0,94098.0,0.102]
[1735496203077,0.01667294,94099.0,94098.0,0.098]
[1735496203301,0.20790481,94099.0,94098.0,0.102]
[1735496203511,0.20790481,94099.0,94098.0,0.006]
[1735496203673,0.20790481,94099.0,94098.0,0.102]
[1735496204091,0.19123187,94099.0,94098.0,0.102]
[1735496204498,0.40507301,94103.0,94098.0,0.102]
[1735496204760,0.897,94102.0,94101.0,0.096]
[1735496204932,0.871,94102.0,94101.0,0.096]
[1735496205135,0.793,94102.0,94101.0,0.096]
[1735496205681,0.694,94102.0,94101.0,0.096]
[1735496205956,0.5,94102.0,94101.0,0.098]
[1735496206591,0.64333235,94102.0,94101.0,0.098]
[1735496206791,0.69333235,94102.0,94101.0,0.098]
[1735496207331,0.71000454,94102.0,94101.0,0.098]
[1735496207694,0.56667219,94102.0,94101.0,0.098]
[1735496208794,0.56667219,94102.0,94101.0,0.099]
[1735496209820,0.71775851,94102.0,94101.0,0.099]
[1735496210768,0.90899038,94102.0,94101.0,0.099]
[1735496211941,0.61377219,94102.0,94101.0,0.099]
[1735496212554,0.61377219,94102.0,94101.0,0.003]
[1735496212754,0.61377219,94102.0,94101.0,0.099]
[1735496214022,0.5971,94102.0,94101.0,0.099]
[1735496216379,0.78822725,94102.0,94101.0,0.099]
[1735496217377,0.8049001,94102.0,94101.0,0.099]
[1735496217596,0.98728642,94102.0,94101.0,0.003]
[1735496217802,1.03507546,94102.0,94101.0,0.003]
[1735496218523,1.03507546,94102.0,94101.0,0.002]
[1735496218731,0.79615917,94102.0,94101.0,0.002]
[1735496218929,0.79915917,94102.0,94101.0,0.002]
[1735496219089,0.79915917,94102.0,94098.0,0.0001706]
[1735496219329,0.0784,94100.0,94098.0,0.0001706]
[1735496219532,3.530717,94099.0,94098.0,0.0001706]
[1735496220181,3.609117,94099.0,94098.0,0.0001706]
[1735496220393,3.67807216,94099.0,94098.0,0.0001706]
[1735496220541,3.7470762,94099.0,94098.0,0.0001706]
[1735496220740,3.85106252,94099.0,94098.0,0.0001706]
[1735496222164,3.85306252,94099.0,94098.0,0.0001706]
[1735496222552,3.68112104,94099.0,94098.0,0.0001706]
[1735496222765,3.16340404,94099.0,94098.0,0.0001706]
[1735496222913,2.80740404,94099.0,94098.0,0.0001706]
[1735496223534,2.74640404,94099.0,94098.0,0.0001706]
[1735496225798,2.62640404,94099.0,94098.0,0.0001706]
[1735496226012,2.62840404,94099.0,94098.0,0.0001706]
[1735496226207,2.62940404,94099.0,94098.0,0.0001706]
[1735496226595,2.91607719,94099.0,94098.0,0.0001706]
[1735496227328,3.02571575,94099.0,94098.0,0.0001706]
[1735496227572,2.7390426,94099.0,94098.0,0.0001706]
[1735496230665,2.80799776,94099.0,94098.0,0.0001706]
[1735496230840,2.81199776,94099.0,94098.0,0.0001706]
[1735496231386,0.20165516,94094.0,94093.0,0.0001706]
[1735496231638,0.30564148,94094.0,94093.0,0.0001706]
[1735496231839,3.83635848,94094.0,94093.0,0.0001706]
[1735496232041,3.81335848,94094.0,94093.0,0.0001706]
[1735496232251,3.85470252,94094.0,94093.0,0.0001706]
[1735496233014,3.85970252,94094.0,94093.0,0.0001706]
[1735496233212,0.17865516,94087.0,94086.0,0.0001706]
[1735496233430,3.70937216,94087.0,94086.0,0.0001706]
[1735496233623,0.17865516,94086.0,94084.0,0.0001706]
[1735496233826,3.70937216,94086.0,94084.0,0.0001706]
[1735496234198,3.76252477,94086.0,94084.0,0.0001706]
[1735496235047,0.04995516,94079.0,94078.0,1e-08]
[1735496235208,0.13095516,94079.0,94078.0,1e-08]
[1735496236279,0.13095516,94079.0,94078.0,0.00050896]
[1735496236497,0.13295516,94079.0,94078.0,0.00050896]
[1735496236698,3.66367216,94079.0,94078.0,0.00050896]
[1735496237097,3.68735384,94079.0,94078.0,1e-08]
[1735496237305,0.25567117,94079.0,94078.0,1e-08]
[1735496237834,0.23566713,94079.0,94078.0,1e-08]
[1735496239896,0.24680155,94079.0,94078.0,1e-08]
[1735496243998,0.23011987,94079.0,94078.0,0.00017081]
[1735496244297,0.34241987,94079.0,94078.0,0.00017081]
[1735496244803,3.71641987,94079.0,94078.0,0.00017081]
[1735496245000,4.03795003,94079.0,94078.0,0.00017081]
[1735496245298,4.05795407,94079.0,94078.0,0.00017081]
[1735496245942,3.58864829,94079.0,94078.0,0.00017081]
[1735496247383,2.67133064,94079.0,94078.0,0.00017081]
[1735496248858,2.79853064,94079.0,94078.0,0.00017081]
[1735496249667,0.11631586,94077.0,94031.0,0.0757]
[1735496249916,0.26163486,94041.0,94031.0,0.0757]
[1735496250286,0.01668512,94039.0,94031.0,0.0757]
[1735496250505,3.530717,94038.0,94031.0,0.0757]
[1735496250829,3.530717,94038.0,94031.0,0.0767]
[1735496251027,3.53122491,94038.0,94031.0,0.0767]
[1735496251305,3.530717,94037.0,94031.0,0.0757]
[1735496251491,3.530717,94037.0,94032.0,0.1]
[1735496251694,0.00050791,94038.0,94032.0,0.1]
[1735496251695,3.141,94036.0,94032.0,0.1]
[1735496252034,3.113,94037.0,94032.0,0.1]
[1735496252229,3.07,94035.0,94032.0,0.1]
[1735496252478,3.07,94036.0,94032.0,0.1]
[1735496252678,3.072,94035.0,94032.0,0.11757]
[1735496252849,0.112,94034.0,94032.0,0.11757]
[1735496253071,0.144,94037.0,94032.0,0.1]
[1735496253478,0.00050791,94038.0,94037.0,0.2]
[1735496253683,0.00050791,94038.0,94037.0,0.2754]
[1735496254774,0.00050791,94038.0,94037.0,0.1754]
[1735496254972,0.87650791,94038.0,94037.0,0.0824]
[1735496255181,2.3111587,94038.0,94037.0,0.0824]
[1735496255370,1.10850791,94038.0,94037.0,0.1824]
[1735496255578,0.15650791,94038.0,94037.0,0.1824]
[1735496256987,0.17419379,94038.0,94037.0,0.1834]
[1735496259723,0.17419379,94038.0,94037.0,0.0834]
[1735496259943,0.17419379,94038.0,94037.0,0.008]
[1735496261235,0.17219379,94038.0,94031.0,0.0001708]
[1735496261439,3.530717,94037.0,94031.0,0.0001708]
[1735496261612,3.530717,94037.0,94034.0,0.1]
[1735496261983,3.530717,94037.0,94031.0,0.0001708]
[1735496262303,0.02001729,94036.0,94031.0,0.0001708]
[1735496262508,3.530717,94035.0,94031.0,0.0001708]
[1735496262710,0.10398632,94034.0,94031.0,0.0001708]
[1735496263018,3.530717,94033.0,94031.0,0.0001708]
[1735496263461,0.02001729,94032.0,94031.0,0.0001708]
[1735496263613,3.55073429,94032.0,94031.0,0.0041708]
[1735496264234,3.55073429,94032.0,94031.0,0.0001708]
[1735496265294,3.55273429,94032.0,94031.0,0.0001708]
[1735496265451,3.65672061,94032.0,94031.0,0.0001708]
[1735496267162,3.55273429,94032.0,94031.0,0.0001708]
[1735496267793,3.60023429,94032.0,94031.0,0.0001708]
[1735496268812,3.61692373,94032.0,94031.0,0.0001708]
[1735496269959,3.61492373,94032.0,94031.0,0.0001708]
[1735496270168,3.62092373,94032.0,94031.0,0.0011708]
[1735496270381,3.72491005,94032.0,94031.0,0.0011708]
[1735496270587,3.72091005,94032.0,94031.0,0.0001708]
[1735496270848,3.72891005,94032.0,94031.0,0.0011708]
[1735496271350,3.72691005,94032.0,94031.0,0.0011708]
[1735496271550,3.72991005,94032.0,94031.0,0.0011708]
[1735496273338,3.62592373,94032.0,94031.0,0.0011708]
[1735496274136,3.60923429,94032.0,94031.0,0.0011708]
[1735496274552,3.61479585,94032.0,94017.0,0.0001706]
[1735496274773,0.26174066,94027.0,94017.0,0.0001706]
[1735496274985,3.530717,94026.0,94017.0,0.0001706]
[1735496275183,0.10398632,94025.0,94017.0,0.0001706]
[1735496275391,3.27198632,94025.0,94017.0,0.0001706]
[1735496275596,2.943,94024.0,94017.0,0.0001706]
[1735496275722,3.091,94023.0,94017.0,0.0001706]
[1735496275930,3.356625,94022.0,94017.0,0.0001706]
[1735496276140,3.45140546,94021.0,94017.0,0.0001706]
[1735496276510,3.356625,94020.0,94017.0,0.0001706]
[1735496276659,3.356625,94019.0,94017.0,0.0001706]
[1735496276861,3.356625,94018.0,94017.0,0.0001706]
[1735496277071,3.356625,94020.0,94017.0,0.0001706]
[1735496277411,3.356625,94019.0,94017.0,0.0001706]
[1735496277779,3.356625,94018.0,94017.0,0.0001706]
[1735496278087,3.362625,94018.0,94017.0,0.0001706]
[1735496278289,3.46661132,94018.0,94017.0,0.0001706]
[1735496278641,3.48330159,94018.0,94017.0,0.0001706]
[1735496278867,3.47167659,94018.0,94017.0,0.0001706]
[1735496279290,3.70993531,94018.0,94017.0,0.0001706]
[1735496280238,3.66223757,94018.0,94017.0,0.0001706]
[1735496280448,3.65623757,94018.0,94017.0,0.0001706]
[1735496281539,3.65823757,94018.0,94017.0,0.0001706]
[1735496282223,3.66323757,94018.0,94017.0,0.0001706]
[1735496282533,3.47267659,94018.0,94017.0,0.0001706]
[1735496284234,3.45598632,94018.0,94017.0,0.0001706]
[1735496284431,3.352,94018.0,94017.0,0.0001706]
[1735496284862,3.022,94018.0,94017.0,0.0001706]
[1735496285032,3.21245597,94018.0,94017.0,0.0001706]
[1735496285692,0.19745597,94018.0,94017.0,0.0001706]
[1735496285855,0.19745597,94018.0,94017.0,0.0821706]
[1735496286064,0.02502356,94018.0,94017.0,0.0821706]
[1735496286267,0.02502356,94018.0,94017.0,0.1821706]
[1735496286471,0.02502356,94018.0,94017.0,0.2821706]
[1735496286800,0.005,94018.0,94017.0,0.2821706]
[1735496287186,0.26174066,94027.0,94017.0,0.2821706]
[1735496287311,0.26174066,94027.0,94018.0,0.1]
[1735496287548,0.01668777,94025.0,94018.0,0.1]
[1735496288094,0.01668777,94025.0,94018.0,0.098]
[1735496288310,0.01668777,94025.0,94019.0,0.082]
[1735496290849,0.01668777,94025.0,94021.0,0.1]
[1735496291067,0.01768777,94025.0,94021.0,0.1]
[1735496291513,3.41790435,94024.0,94019.0,0.09]
[1735496291716,3.356625,94023.0,94019.0,0.09]
[1735496291914,3.356625,94023.0,94019.0,0.086]
[1735496292302,3.356625,94023.0,94021.0,0.004]
[1735496292511,0.14290905,94022.0,94019.0,0.086]
[1735496292715,1.119,94021.0,94019.0,0.086]
[1735496292989,1.093,94021.0,94019.0,0.082]
[1735496293114,1.058,94021.0,94019.0,0.082]
[1735496293692,1.20090905,94021.0,94019.0,0.082]
[1735496293867,1.067,94020.0,94019.0,0.082]
[1735496294072,1.067,94020.0,94019.0,0.085]
[1735496294494,1.067,94020.0,94019.0,0.088]
[1735496294705,0.14290905,94021.0,94019.0,0.088]
[1735496294948,0.14290905,94021.0,94019.0,0.082]
[1735496295380,0.14290905,94021.0,94019.0,0.086]
[1735496295580,0.14290905,94021.0,94020.0,0.1]
[1735496295784,0.14290905,94021.0,94020.0,0.1476]
[1735496295957,0.14290905,94021.0,94020.0,0.3241]
[1735496296792,0.14299435,94025.0,94020.0,0.2456]
[1735496296991,0.14299435,94025.0,94024.0,0.198]
[1735496297190,0.14299435,94025.0,94024.0,0.2765]
[1735496297849,0.15968095,94025.0,94024.0,0.2765]
[1735496297986,0.0167719,94025.0,94024.0,0.2755]
[1735496298189,0.0177719,94025.0,94024.0,0.2835]
[1735496300644,0.0177719,94025.0,94024.0,0.2885]
[1735496303918,2.1077719,94025.0,94024.0,0.0915]
[1735496304125,3.3577103,94025.0,94024.0,0.0915]
[1735496304529,3.2140853,94025.0,94024.0,0.0915]
[1735496304968,3.1230853,94025.0,94024.0,0.0915]
[1735496305219,0.8110853,94025.0,94024.0,0.0915]
[1735496305580,0.8110853,94025.0,94024.0,0.1895]
[1735496305779,0.8110853,94025.0,94024.0,0.0915]
[1735496306069,0.8110853,94025.0,94024.0,0.1895]
[1735496306296,0.8110853,94025.0,94024.0,0.0915]
[1735496306722,0.0010853,94025.0,94024.0,0.2885]
[1735496307098,8.53e-05,94025.0,94024.0,0.2805]
[1735496307308,0.01677179,94025.0,94024.0,0.2805]
[1735496307465,0.01777179,94025.0,94024.0,0.2855]
[1735496307893,0.01677179,94025.0,94024.0,0.2755]
[1735496308423,0.01777179,94025.0,94024.0,0.2845]
[1735496308771,0.01777179,94025.0,94024.0,0.2815]
[1735496309183,0.01777179,94025.0,94024.0,0.2845]
[1735496311076,0.01777179,94025.0,94024.0,0.31298412]
[1735496311282,0.01777179,94025.0,94024.0,0.35998412]
[1735496311900,0.01777179,94025.0,94024.0,0.46397044]
[1735496312104,0.14324626,94026.0,94025.0,0.197]
[1735496312310,0.13087033,94034.0,94033.0,0.197]
[1735496312460,0.14324626,94036.0,94035.0,0.099]
[1735496312697,0.14324626,94036.0,94035.0,0.40876632]
[1735496312898,0.14324626,94036.0,94035.0,0.45576632]
[1735496313891,8.53e-05,94041.0,94035.0,0.45576632]
[1735496314092,8.53e-05,94041.0,94037.0,0.098]
[1735496314276,8.53e-05,94041.0,94037.0,0.32478632]
[1735496314454,8.53e-05,94041.0,94037.0,0.57651436]
[1735496314657,8.53e-05,94041.0,94037.0,0.57551436]
[1735496315400,0.00150791,94038.0,94037.0,0.57551436]
[1735496315731,0.00050791,94038.0,94037.0,0.57551436]
[1735496316340,0.00150791,94038.0,94037.0,0.58451436]
[1735496316975,0.00250791,94038.0,94037.0,0.59351436]
[1735496317372,0.00150791,94038.0,94037.0,0.58451436]
[1735496317595,0.00250791,94038.0,94037.0,0.59351436]
[1735496318813,0.00259321,94038.0,94037.0,0.59351436]
[1735496321955,8.53e-05,94041.0,94040.0,0.5254]
[1735496322160,0.13087033,94060.0,94059.0,0.296]
[1735496322360,0.13087033,94069.0,94068.0,0.1794]
[1735496322563,0.26174066,94080.0,94078.0,0.196]
[1735496322765,8.54e-05,94086.0,94078.0,0.196]
[1735496322967,0.01676278,94079.0,94078.0,0.196]
[1735496323185,0.01676278,94079.0,94078.0,0.195]
[1735496323853,0.01676278,94079.0,94078.0,0.19515261]
[1735496324051,8.54e-05,94079.0,94078.0,0.20015261]
[1735496324661,8.54e-05,94079.0,94078.0,0.20815261]
[1735496324867,8.54e-05,94079.0,94078.0,0.20015261]
[1735496325257,8.54e-05,94079.0,94078.0,0.20915261]
[1735496325470,8.54e-05,94079.0,94078.0,0.20415261]
[1735496325915,8.54e-05,94079.0,94078.0,0.20815261]
[1735496326483,8.54e-05,94079.0,94078.0,0.20415261]
[1735496326690,8.54e-05,94079.0,94078.0,0.20815261]
[1735496327150,0.01676262,94079.0,94078.0,0.20815261]
[1735496328198,8.54e-05,94079.0,94078.0,0.20815261]
[1735496331209,0.01676266,94079.0,94078.0,0.20815261]
[1735496331616,0.01676266,94079.0,94078.0,0.20832321]
[1735496332421,0.01576266,94079.0,94078.0,0.20832321]
[1735496334142,8.54e-05,94086.0,94085.0,0.099]
[1735496334346,8.54e-05,94086.0,94085.0,0.2774]
[1735496335596,8.54e-05,94086.0,94085.0,0.2804]
[1735496337261,8.54e-05,94086.0,94085.0,0.198]
[1735496337464,0.01676107,94086.0,94085.0,0.204]
[1735496337875,0.01676107,94086.0,94085.0,0.105]
[1735496338326,0.01676107,94086.0,94085.0,0.204]
[1735496338737,0.01676107,94086.0,94085.0,0.009]
[1735496339754,1.32676107,94086.0,94085.0,0.009]
[1735496339907,1.48576107,94086.0,94085.0,0.009]
[1735496340321,1.21276107,94086.0,94085.0,0.009]
[1735496340946,1.19276107,94086.0,94085.0,0.009]
[1735496341195,1.37614739,94086.0,94085.0,0.009]
[1735496341373,1.27216107,94086.0,94085.0,0.009]
[1735496342118,1.27216107,94086.0,94085.0,0.006]
[1735496342533,1.27216107,94086.0,94085.0,0.007]
[1735496343051,1.27216107,94086.0,94085.0,0.006]
[1735496343626,1.27216107,94086.0,94085.0,0.001]
[1735496344043,1.2554854,94086.0,94085.0,0.002]
[1735496346640,1.2554854,94086.0,94085.0,0.001]
[1735496346967,8.54e-05,94086.0,94078.0,0.09932321]
[1735496347096,0.263,94085.0,94078.0,0.09932321]
[1735496347298,0.263,94085.0,94078.0,0.00032321]
[1735496349281,0.263,94085.0,94078.0,0.00232321]
[1735496350765,0.263,94085.0,94078.0,0.00032321]
[1735496353604,0.09513722,94084.0,94078.0,0.00032321]
[1735496353808,3.356625,94083.0,94078.0,0.00032321]
[1735496353963,2.334,94083.0,94078.0,0.00032321]
[1735496354163,2.557,94083.0,94078.0,0.00032321]
[1735496354403,2.398,94083.0,94078.0,0.00032321]
[1735496354766,0.09513722,94081.0,94078.0,0.00032321]
[1735496354971,0.541,94080.0,94078.0,0.00032321]
[1735496355168,0.541,94080.0,94078.0,0.00132321]
[1735496355371,0.09513722,94081.0,94080.0,0.099]
[1735496355608,0.14324626,94081.0,94080.0,0.195]
[1735496355812,0.58424626,94081.0,94078.0,0.00132321]
[1735496356080,0.0458,94079.0,94078.0,0.00032321]
[1735496356380,3.402425,94079.0,94078.0,0.00032321]
[1735496356492,3.50641132,94079.0,94078.0,0.00032321]
[1735496356939,3.50641132,94079.0,94078.0,0.00132321]
[1735496357586,3.52309184,94079.0,94078.0,0.00332321]
[1735496357749,3.52309184,94079.0,94078.0,0.00132321]
[1735496357959,3.41910552,94079.0,94078.0,0.00132321]
[1735496358149,3.42310552,94079.0,94078.0,0.00032321]
[1735496358356,3.42310552,94079.0,94078.0,0.00132321]
[1735496358553,3.41910552,94079.0,94078.0,0.00132321]
[1735496358731,3.42310552,94079.0,94078.0,0.00132321]
[1735496358932,3.52709184,94079.0,94078.0,0.00132321]
[1735496359290,3.42310552,94079.0,94078.0,0.00132321]
[1735496359648,3.42310552,94079.0,94078.0,0.00032321]
[1735496360048,3.42510552,94079.0,94078.0,0.00032321]
[1735496361155,3.10817848,94079.0,94078.0,0.00032321]
[1735496361422,3.10817852,94079.0,94078.0,0.00032321]
[1735496361626,1.60568052,94079.0,94078.0,0.00032321]
[1735496362600,0.02268052,94079.0,94078.0,0.00032321]
[1735496362777,0.02068052,94079.0,94078.0,0.21485553]
[1735496363246,0.02268052,94079.0,94078.0,0.21485553]
[1735496363665,0.01668052,94079.0,94078.0,0.21485553]
[1735496364039,0.004,94079.0,94078.0,0.21685553]
[1735496364249,0.09567697,94086.0,94078.0,0.21685553]
[1735496364444,0.09567697,94086.0,94085.0,0.096]
[1735496364975,0.09567697,94086.0,94085.0,0.195]
[1735496365164,0.09567697,94086.0,94085.0,0.276]
[1735496366143,0.09567697,94086.0,94085.0,0.3217]
[1735496366463,0.09567697,94086.0,94085.0,0.3257]
[1735496366671,0.09567697,94086.0,94085.0,0.35830232]
[1735496366882,0.09567697,94086.0,94085.0,0.35430232]
[1735496367125,0.09567697,94086.0,94085.0,0.3287]
[1735496367339,0.09567697,94086.0,94085.0,0.2367]
[1735496367509,8.54e-05,94086.0,94085.0,0.184]
[1735496367712,8.54e-05,94086.0,94085.0,0.18]
[1735496367951,8.54e-05,94086.0,94085.0,0.30303232]
[1735496368259,0.0010854,94086.0,94085.0,0.31103232]
[1735496368411,0.0010854,94086.0,94085.0,0.30203232]
[1735496368618,0.0010854,94086.0,94085.0,0.20603232]
[1735496368619,0.01776057,94086.0,94085.0,0.20603232]
[1735496368943,0.01776057,94086.0,94085.0,0.292]
[1735496369143,0.01776057,94086.0,94085.0,0.203]
[1735496369363,0.01676057,94086.0,94085.0,0.195]
[1735496369777,0.01676057,94086.0,94085.0,0.198]
[1735496370172,0.01676057,94086.0,94085.0,0.195]
[1735496370370,0.01676057,94086.0,94085.0,0.21453232]
[1735496371108,0.01676057,94086.0,94085.0,0.207]
[1735496371451,0.01676057,94086.0,94085.0,0.198]
[1735496371871,0.01676057,94086.0,94085.0,0.207]
[1735496373307,0.01676057,94086.0,94085.0,0.012]
[1735496373519,0.01676057,94086.0,94085.0,0.207]
[1735496374061,0.19126854,94086.0,94085.0,0.207]
[1735496374440,0.19126854,94086.0,94085.0,0.111]
[1735496374594,0.19126854,94086.0,94085.0,0.207]
[1735496374776,0.19126854,94086.0,94085.0,0.111]
[1735496375335,8.54e-05,94086.0,94085.0,0.111]
[1735496375840,8.54e-05,94086.0,94085.0,0.012]
[1735496376010,8.54e-05,94086.0,94085.0,0.207]
[1735496378068,0.23906432,94086.0,94085.0,0.207]
[1735496378757,0.25573983,94086.0,94085.0,0.207]
[1735496379080,0.16000393,94086.0,94085.0,0.207]
[1735496383069,0.16000393,94086.0,94085.0,0.204]
[1735496383254,0.16000393,94086.0,94085.0,0.208]
[1735496383456,0.01676091,94086.0,94085.0,0.208]
[1735496383693,0.01676091,94086.0,94085.0,0.013]
[1735496383898,1.40376091,94086.0,94085.0,0.013]
[1735496384110,1.3870854,94086.0,94085.0,0.013]
[1735496384423,0.9850854,94086.0,94085.0,0.109]
[1735496384637,0.9740854,94086.0,94085.0,0.109]
[1735496385202,0.9740854,94086.0,94085.0,0.1]
[1735496385794,0.9740854,94086.0,94085.0,0.109]
[1735496386625,0.9440854,94086.0,94085.0,0.109]
[1735496387037,0.9440854,94086.0,94085.0,0.013]
[1735496387245,0.96076174,94086.0,94085.0,0.013]
[1735496387445,0.96076174,94086.0,94085.0,0.109]
[1735496388065,1.15175243,94086.0,94085.0,0.109]
[1735496389027,0.96076174,94086.0,94085.0,0.109]
[1735496391454,0.87976174,94086.0,94085.0,0.109]
[1735496392218,0.80976174,94086.0,94085.0,0.013]
[1735496392699,0.80976174,94086.0,94085.0,0.109]
[1735496392948,0.01676174,94086.0,94085.0,0.109]
[1735496394080,8.54e-05,94086.0,94085.0,0.109]
[1735496395332,0.19114902,94086.0,94085.0,0.109]
[1735496396268,0.21898836,94089.0,94087.0,0.096]
[1735496396690,0.863,94088.0,94087.0,0.096]
[1735496396916,0.85,94088.0,94087.0,0.096]
[1735496397405,0.86667553,94088.0,94087.0,0.096]
[1735496397874,0.86667553,94088.0,94087.0,0.103]
[1735496398313,0.86667553,94088.0,94087.0,0.271]
[1735496398314,0.01667553,94088.0,94087.0,0.271]
[1735496399160,0.01667553,94088.0,94087.0,0.264]
[1735496399575,0.01667553,94088.0,94087.0,0.272]
[1735496399778,0.01667553,94088.0,94087.0,0.264]
[1735496400010,0.01667553,94088.0,94087.0,0.54878632]
[1735496400222,0.01667553,94088.0,94087.0,0.55578632]
[1735496400434,0.01667553,94088.0,94087.0,0.54878632]
[1735496400845,0.01667553,94088.0,94087.0,0.55778632]
[1735496401051,0.01667553,94088.0,94087.0,0.3246]
[1735496401739,0.01676083,94088.0,94087.0,0.2286]
[1735496402155,0.01676083,94088.0,94087.0,0.099]
[1735496402358,0.01676083,94088.0,94087.0,0.111]
[1735496402574,0.01676083,94088.0,94087.0,0.012]
[1735496402985,0.01676083,94088.0,94087.0,0.099]
[1735496403214,0.01676083,94088.0,94087.0,0.003]
[1735496403422,0.01676083,94088.0,94087.0,0.009]
[1735496403620,0.01676083,94088.0,94087.0,0.105]
[1735496403776,0.01676083,94088.0,94087.0,0.096]
[1735496404180,0.01676083,94088.0,94087.0,0.103]
[1735496404560,2.75576083,94088.0,94087.0,0.007]
[1735496404770,2.03776083,94088.0,94087.0,0.103]
[1735496405220,2.03776083,94088.0,94087.0,0.013]
[1735496406041,2.03776083,94088.0,94087.0,0.109]
[1735496406593,2.03776083,94088.0,94087.0,0.103]
[1735496407002,2.27663126,94088.0,94087.0,0.01]
[1735496407447,2.27663126,94088.0,94083.0,0.099]
[1735496407665,2.411,94087.0,94083.0,0.099]
[1735496408174,0.23895573,94088.0,94083.0,0.099]
[1735496408175,1.635,94086.0,94083.0,0.099]
[1735496408393,2.04,94087.0,94083.0,0.099]
[1735496408586,1.65,94086.0,94083.0,0.099]
[1735496408826,8.53e-05,94088.0,94083.0,0.099]
[1735496408827,1.966,94087.0,94083.0,0.099]
[1735496409019,0.88,94086.0,94083.0,0.099]
[1735496409225,0.578,94086.0,94083.0,0.099]
[1735496409425,0.592,94085.0,94083.0,0.099]
[1735496409633,1.13,94087.0,94083.0,0.099]
[1735496409835,0.93,94087.0,94083.0,0.099]
[1735496410060,8.53e-05,94088.0,94086.0,0.096]
[1735496410253,0.924,94087.0,94086.0,0.096]
[1735496413559,0.911,94087.0,94086.0,0.096]
[1735496413758,0.911,94087.0,94086.0,0.105]
[1735496413974,0.911,94087.0,94086.0,0.009]
[1735496414531,0.911,94087.0,94086.0,0.0091706]
[1735496415607,0.911,94087.0,94086.0,0.0001706]
[1735496416013,1.01498632,94087.0,94086.0,0.0001706]
[1735496416235,0.911,94087.0,94086.0,0.0001706]
[1735496416473,0.911,94087.0,94086.0,0.0051706]
[1735496416474,1.19770058,94087.0,94086.0,0.0051706]
[1735496417377,1.19770058,94087.0,94086.0,0.0041706]
[1735496417662,0.92767855,94087.0,94086.0,0.0041706]
[1735496418467,0.92767855,94087.0,94086.0,0.0001706]
[1735496421480,1.03603901,94087.0,94086.0,0.0001706]
[1735496421698,1.03703901,94087.0,94086.0,0.0001706]
[1735496422928,1.00427855,94087.0,94086.0,0.0001706]
[1735496423154,1.00727855,94087.0,94086.0,0.0011706]
[1735496423558,1.00827855,94087.0,94086.0,0.0011706]
[1735496423984,1.00527855,94087.0,94086.0,0.0001706]
[1735496424187,0.9886,94087.0,94086.0,0.0001706]
[1735496424399,1.09252853,94087.0,94086.0,0.0001706]
[1735496424928,0.9886,94087.0,94086.0,0.0001706]